fUSD/lending_fUSD_20260107
["ID","MTS","AMOUNT","RATE_DAILY","PERIOD"]
[400747880,1767810990104,-117.14941758,0.00014929,2]
[400747881,1767810990126,-181.10847718,0.00014946,2]
[400747882,1767810992243,-68.89152282,0.00014946,2]
[400747883,1767810992264,-84.70866927,0.00014963,2]
[400747884,1767810993418,-215.29133073,0.00014963,2]
[400747885,1767810993445,-34.70866927,0.00014977,2]
[400747886,1767811000934,-195.0,0.00014977,2]
[400747887,1767811003167,-20.29133073,0.00014977,2]
[400747888,1767811003191,-279.70866927,0.00014997,2]
[400747889,1767811015299,-500.0,0.000149,2]
[400747891,1767811017981,-307.92597978,0.000149,2]
[400747892,1767811045284,-222.97836515,0.000149,2]
[400747893,1767811060215,-168.49819318,0.000149,2]
[400747894,1767811063950,-282.82985658,0.000149,2]
[400747895,1767811065702,-217.17014342,0.000149,2]
[400747896,1767811070724,-280.17598998,0.000149,2]
[400747897,1767811076261,-195.0,0.000149,2]
[400747898,1767811079039,-239.4238419,0.000149,2]
[400747902,1767811084292,-85.99763001,0.000149,2]
[400747903,1767811084322,-250.0,0.00014948,2]
[400747904,1767811084351,-195.0,0.00014948,2]
[400747905,1767811084380,-300.0,0.0001499,2]
[400747906,1767811084410,-500.0,0.00014991,2]
[400747907,1767811084441,-500.0,0.00014991,2]
[400747908,1767811084470,-500.0,0.00014991,2]
[400747909,1767811084499,-477.75390719,0.00014991,2]
[400747910,1767811084527,-327.25369848,0.00014991,2]
[400747911,1767811084555,-500.0,0.00014991,2]
[400747912,1767811084584,-151.0,0.00014991,2]
[400747913,1767811084614,-151.0,0.00014991,2]
[400747914,1767811084643,-151.0,0.00014991,2]
[400747915,1767811084674,-151.0,0.00014991,2]
[400747916,1767811084704,-151.0,0.00014991,2]
[400747917,1767811084733,-151.0,0.00014991,2]
[400747918,1767811084761,-151.0,0.00014991,2]
[400747919,1767811084789,-151.0,0.00014991,2]
[400747920,1767811084818,-151.0,0.00014991,2]
[400747921,1767811086033,-9.99952864,0.00014991,2]
[400747922,1767811089986,-141.00047136,0.00014991,2]
[400747923,1767811090019,-151.0,0.00014991,2]
[400747924,1767811090053,-150.0,0.00014997,2]
[400747925,1767811090086,-500.0,0.00014998,2]
[400747926,1767811090123,-1315.28,0.00014998,2]
[400747927,1767811090157,-500.0,0.00014998,2]
[400747928,1767811090192,-275.6527,0.00014999,2]
[400747929,1767811090225,-150.99,0.00014999,2]
[400747930,1767811090544,-3632.16365728,0.00014999,2]
[400747931,1767811135184,-300.0,0.00014999,2]
[400747932,1767811166047,-383.1415251,0.000149,2]
[400747933,1767811211021,-248.88986117,0.000149,2]
[400747934,1767811213001,2107.0,0.00014421,2]
[400747935,1767811240129,-247.73392723,0.000149,2]
[400747936,1767811242235,-202.91448348,0.000149,2]
[400747937,1767811270200,7893.01,0.00014319,2]
[400747938,1767811270223,9188.83,0.00014319,2]
[400747939,1767811290007,500.0,0.00014854,2]
[400747940,1767811290066,206.3800823,0.00014854,2]
[400747941,1767811291211,104.7999177,0.00014854,2]
[400747942,1767811291233,45.2000823,0.00014854,2]
[400747943,1767811291321,500.0,0.00014854,2]
[400747944,1767811291421,500.0,0.00014854,2]
[400747945,1767811291557,500.0,0.00014854,2]
[400747946,1767811291950,150.0,0.00014854,2]
[400747947,1767811308549,-195.0,0.00014899,2]
[400747948,1767811310698,-258.94882433,0.00014899,2]
[400747949,1767811311834,-490.16894231,0.00014899,2]
[400747950,1767811313467,-163.14635088,0.00014899,2]
[400747951,1767811314982,-321.17076733,0.00014899,2]
[400747952,1767811318309,-156.21597287,0.00014899,2]
[400747953,1767811330578,500.0,0.00014854,2]
[400747954,1767811345121,-300.0,0.00014898,2]
[400747955,1767811345144,-146.55216699,0.00014899,2]
[400747956,1767811348549,-258.05181576,0.00014899,2]
[400747957,1767811351327,-329.42632757,0.00014899,2]
[400747958,1767811353720,-309.59234462,0.00014899,2]
[400747959,1767811355620,-281.94726149,0.00014899,2]
[400747960,1767811357578,-195.25262585,0.00014899,2]
[400747961,1767811357600,-163.74591864,0.00014899,2]
[400747962,1767811359139,-291.0,0.00014899,2]
[400747963,1767811361606,-277.23348557,0.00014899,2]
[400747964,1767811364330,-297.12735966,0.00014899,2]
[400747965,1767811366249,-157.570551,0.00014899,2]
[400747966,1767811367825,-179.95227903,0.00014899,2]
[400747967,1767811372338,-215.52745536,0.00014899,2]
[400747968,1767811375209,-178.55663227,0.00014899,2]
[400747969,1767811376510,-239.48419986,0.00014899,2]
[400747970,1767811380515,-180.24981913,0.00014899,2]
[400747971,1767811381882,-176.82092839,0.00014899,2]
[400747972,1767811387119,-361.54564304,0.00014899,2]
[400747973,1767811387448,689.4833,0.00014824,2]
[400747974,1767811389027,-162.8541716,0.00014899,2]
[400747975,1767811390952,-262.78607824,0.00014899,2]
[400747976,1767811393954,-302.0,0.00014899,2]
[400747977,1767811397345,-202.48078499,0.00014899,2]
[400747978,1767811399474,-197.03465754,0.00014899,2]
[400747979,1767811401195,-153.96534246,0.00014899,2]
[400747980,1767811402628,-302.0,0.00014899,2]
[400747981,1767811405084,-161.72375284,0.00014899,2]
[400747982,1767811420126,-297.97604525,0.00014899,2]
[400747983,1767811429110,423.57,0.00014097,2]
[400747984,1767811435210,-168.42467707,0.00014899,2]
[400747985,1767811439077,-189.13364541,0.00014899,2]
[400747986,1767811441133,-421.75076159,0.00014899,2]
[400747987,1767811442637,-174.42241913,0.00014899,2]
[400747988,1767811445422,-138.09989193,0.00014899,2]
[400747989,1767811445444,-177.84001201,0.00014899,2]
[400747990,1767811449165,-169.92921408,0.00014899,2]
[400747991,1767811451760,-287.17334878,0.00014899,2]
[400747992,1767811453929,-477.58526062,0.00014899,2]
[400747993,1767811456097,-582.57868296,0.00014899,2]
[400747994,1767811458430,-241.65238321,0.00014899,2]
[400747995,1767811460844,-150.90909834,0.00014899,2]
[400747996,1767811460869,-64.65769453,0.000149,2]
[400747997,1767811462254,-166.67037824,0.000149,2]
[400747998,1767811495265,-42.67192723,0.000149,2]
[400747999,1767811495288,-280.3278616,0.00014909,2]
[400748000,1767811498682,-219.6721384,0.00014909,2]
[400748001,1767811498726,-91.41719114,0.00014909,2]
[400748002,1767811504576,-317.65263784,0.00014909,2]
[400748003,1767811505802,500.0,0.00014744,2]
[400748004,1767811505970,500.0,0.00014799,2]
[400748005,1767811506411,500.0,0.00014854,2]
[400748006,1767811507729,194.00411142,0.00014744,2]
[400748007,1767811508035,500.0,0.00014744,2]
[400748008,1767811508211,500.0,0.00014799,2]
[400748009,1767811508469,500.0,0.00014854,2]
[400748010,1767811508775,-500.0,0.000149,2]
[400748011,1767811510974,-399.60829359,0.000149,2]
[400748012,1767811513648,-100.39170641,0.000149,2]
[400748013,1767811513673,-252.16866732,0.000149,2]
[400748014,1767811515339,-177.00021117,0.000149,2]
[400748015,1767811518237,-70.83112151,0.000149,2]
[400748016,1767811518261,-429.16887849,0.000149,2]
[400748017,1767811522493,-70.83112151,0.000149,2]
[400748018,1767811522516,-229.16887849,0.000149,2]
[400748019,1767811525547,-270.83112151,0.000149,2]
[400748020,1767811525569,-229.16887849,0.000149,2]
[400748021,1767811527395,-270.83112151,0.000149,2]
[400748022,1767811527418,-229.16887849,0.000149,2]
[400748023,1767811529375,-174.20941521,0.000149,2]
[400748024,1767811531049,-96.6217063,0.000149,2]
[400748025,1767811531071,-251.72040708,0.000149,2]
[400748026,1767811535367,-226.1822912,0.000149,2]
[400748027,1767811537902,-22.09730172,0.000149,2]
[400748028,1767811537926,-453.73164159,0.000149,2]
[400748029,1767811539728,-46.26835841,0.000149,2]
[400748030,1767811539752,-453.73164159,0.000149,2]
[400748031,1767811542669,-46.26835841,0.000149,2]
[400748032,1767811542695,-276.73143042,0.000149,2]
[400748033,1767811546255,-223.26856958,0.000149,2]
[400748034,1767811546278,-276.73143042,0.000149,2]
[400748035,1767811548972,-36.61479074,0.000149,2]
[400748036,1767811548995,-463.38520926,0.00014908,2]
[400748037,1767811550184,-36.61479074,0.00014908,2]
[400748038,1767811550206,-326.7534378,0.00014908,2]
[400748039,1767811552188,-173.2465622,0.00014908,2]
[400748040,1767811552212,-81.7534378,0.00014909,2]
[400748041,1767811556268,-418.2465622,0.00014909,2]
[400748042,1767811556291,-81.7534378,0.00014913,2]
[400748043,1767811559118,-218.2465622,0.00014913,2]
[400748044,1767811559143,-300.0,0.00014913,2]
[400748045,1767811559165,-18.4146248,0.00014913,2]
[400748046,1767811560855,-281.5853752,0.00014913,2]
[400748047,1767811560879,-218.4146248,0.00014913,2]
[400748048,1767811563294,-500.0,0.00014913,2]
[400748049,1767811566776,-200.0,0.00014913,2]
[400748050,1767811568106,500.0,0.00014744,2]
[400748051,1767811568806,500.0,0.00014799,2]
[400748052,1767811568902,-177.00021117,0.00014913,2]
[400748053,1767811568943,500.0,0.00014854,2]
[400748054,1767811568981,150.0,0.00014744,2]
[400748055,1767811570926,500.0,0.00014744,2]
[400748056,1767811572373,-169.17953572,0.00014799,2]
[400748057,1767811601107,-289.30237687,0.00014799,2]
[400748058,1767811602289,-41.51808741,0.00014799,2]
[400748059,1767811602311,-199.17460269,0.00014854,2]
[400748060,1767811603763,-300.82539731,0.00014854,2]
[400748061,1767811604105,-346.85033818,0.000149,2]
[400748062,1767811606785,-34.03956182,0.000149,2]
[400748063,1767811606810,-465.96043818,0.00014908,2]
[400748064,1767811610309,-34.03956182,0.00014908,2]
[400748065,1767811610333,-465.96043818,0.00014908,2]
[400748066,1767811612057,-34.03956182,0.00014908,2]
[400748067,1767811612086,-104.58516403,0.00014913,2]
[400748068,1767811612117,-361.37527415,0.00014916,2]
[400748069,1767811615130,-500.0,0.00014916,2]
[400748070,1767811616841,-500.0,0.00014916,2]
[400748071,1767811644814,4587.12,0.00014206,2]
[400748072,1767811645338,-300.0,0.00014916,2]
[400748073,1767811646963,-282.78925076,0.00014916,2]
[400748075,1767811648845,-174.29552926,0.00014916,2]
[400748076,1767811652166,-223.4736911,0.00014916,2]
[400748077,1767811655101,-158.06625473,0.00014916,2]
[400748078,1767811655131,-290.29070041,0.00014917,2]
[400748079,1767811656898,-9.70929959,0.00014917,2]
[400748080,1767811656930,-237.49070041,0.00014918,2]
[400748081,1767811659190,-166.82761257,0.00014918,2]
[400748082,1767811665295,-500.0,0.00014918,2]
[400748083,1767811668037,-500.0,0.00014918,2]
[400748084,1767811671417,-500.0,0.00014918,2]
[400748085,1767811673648,-500.0,0.00014918,2]
[400748086,1767811676990,-188.929543,0.00014918,2]
[400748087,1767811679529,-321.61320066,0.00014918,2]
[400748088,1767811682456,-300.0,0.00014917,2]
[400748089,1767811682478,-150.0,0.00014917,2]
[400748090,1767811682509,-18.02019714,0.00014918,2]
[400748091,1767811685424,-446.03289329,0.00014918,2]
[400748092,1767811688154,-173.85716246,0.00014918,2]
[400748093,1767811691569,-236.09533642,0.00014918,2]
[400748094,1767811693808,-200.0,0.00014918,2]
[400748095,1767811696019,-330.47785856,0.00014918,2]
[400748096,1767811698071,-448.98809283,0.00014918,2]
[400748097,1767811701383,-292.43511023,0.00014918,2]
[400748098,1767811702145,150.0,0.00014744,2]
[400748099,1767811702404,150.0,0.00014799,2]
[400748100,1767811703225,191.58151617,0.00014854,2]
[400748101,1767811704514,210.07522356,0.00014744,2]
[400748102,1767811704877,500.0,0.00014744,2]
[400748103,1767811705593,-263.10165428,0.00014889,2]
[400748104,1767811705760,440.93017102,0.00014799,2]
[400748105,1767811705931,150.0,0.00014744,2]
[400748106,1767811706023,150.0,0.00014744,2]
[400748107,1767811706085,150.0,0.00014799,2]
[400748108,1767811706123,500.0,0.00014744,2]
[400748109,1767811706352,519.25199485,0.00014799,2]
[400748110,1767811706410,150.0,0.00014854,2]
[400748111,1767811707972,485.0,0.00014744,2]
[400748112,1767811708103,485.0,0.00014799,2]
[400748113,1767811708179,150.0,0.00014744,2]
[400748114,1767811708313,485.0,0.00014854,2]
[400748115,1767811708502,150.0,0.00014799,2]
[400748116,1767811708594,-191.37810671,0.00014889,2]
[400748117,1767811708685,156.01932881,0.00014854,2]
[400748118,1767811709223,150.0,0.00014744,2]
[400748119,1767811709259,90.03176559,0.00014744,2]
[400748120,1767811709606,409.96823441,0.00014744,2]
[400748121,1767811709680,150.0,0.00014744,2]
[400748122,1767811709934,150.0,0.00014799,2]
[400748123,1767811709991,500.0,0.00014799,2]
[400748124,1767811710035,199.62704522,0.00014799,2]
[400748125,1767811710075,150.0,0.00014744,2]
[400748126,1767811710137,500.0,0.00014854,2]
[400748127,1767811710176,150.0,0.00014854,2]
[400748128,1767811710287,150.0,0.00014799,2]
[400748129,1767811710516,150.0,0.00014854,2]
[400748130,1767811710674,281.40504741,0.00014744,2]
[400748131,1767811711094,-500.0,0.00014889,2]
[400748132,1767811711374,174.06741652,0.00014744,2]
[400748133,1767811713045,-500.0,0.00014889,2]
[400748134,1767811716223,1852.42,0.00014113,2]
[400748135,1767811716366,-213.68542173,0.00014889,2]
[400748136,1767811718637,-207.14352158,0.00014889,2]
[400748137,1767811721988,-217.54854858,0.00014889,2]
[400748138,1767811723116,-500.0,0.00014889,2]
[400748171,1767811751063,-246.72847017,0.00014888,2]
[400748172,1767811753781,-53.27152983,0.00014888,2]
[400748173,1767811753805,-195.0,0.00014888,2]
[400748174,1767811753828,-23.61623522,0.00014889,2]
[400748175,1767811758776,-163.26587176,0.00014889,2]
[400748176,1767811760841,-321.61320066,0.00014889,2]
[400748177,1767811761961,-317.8102,0.00014889,2]
[400748206,1767811766315,-227.12978495,0.00014889,2]
[400748209,1767811768444,-178.38679934,0.00014889,2]
[400748210,1767811772255,-309.34970793,0.00014889,2]
[400748211,1767811775728,300.0,0.00014101,2]
[400748212,1767811777183,-485.41599061,0.00014889,2]
[400748213,1767811778895,-169.3283259,0.00014889,2]
[400748214,1767811782114,-378.9886536,0.00014889,2]
[400748215,1767811783854,-154.74431651,0.00014889,2]
[400748216,1767811786440,-490.96599061,0.00014889,2]
[400748217,1767811789022,-427.51910702,0.00014889,2]
[400748218,1767811791121,-220.82894331,0.00014889,2]
[400748219,1767811792262,-247.43962627,0.00014889,2]
[400748220,1767811794408,-423.86501122,0.00014889,2]
[400748221,1767811803973,-300.0,0.00014888,2]
[400748222,1767811803997,-196.84127733,0.00014888,2]
[400748223,1767811805697,-235.66563197,0.00014888,2]
[400748224,1767811807694,1236.8002654,0.00014798,2]
[400748225,1767811807785,-259.860247,0.00014888,2]
[400748226,1767811815019,-176.13498878,0.00014888,2]
[400748227,1767811816592,-240.89711016,0.00014888,2]
[400748232,1767811831847,-90.60074476,0.00014888,2]
[400748233,1767811831857,-756786.1217192,0.00014889,2]
[400748275,1767811837790,-236080.75326301,0.00014889,2]
[400748276,1767811837800,-4108.7785,0.00014898,2]
[400748277,1767811837810,-53057.9087,0.00014898,2]
[400748278,1767811837820,-195.0,0.000149,2]
[400748279,1767811837830,-150.0,0.00014908,2]
[400748280,1767811837841,-485.0,0.00014908,2]
[400748281,1767811837851,-500.0,0.00014908,2]
[400748282,1767811837861,-150.0,0.00014908,2]
[400748283,1767811837870,-150.0,0.00014908,2]
[400748284,1767811837881,-1000.0,0.00014917,2]
[400748285,1767811837890,-11835.36861977,0.00014918,2]
[400748286,1767811837900,-1377.82277899,0.00014918,2]
[400748287,1767811837909,-200.0,0.00014918,2]
[400748288,1767811837919,-161.6509,0.00014959,2]
[400748289,1767811837928,-500.0,0.00014963,2]
[400748290,1767811837938,-500.0,0.00014963,2]
[400748291,1767811837947,-150.0,0.00014963,2]
[400748292,1767811837957,-485.0,0.00014963,2]
[400748294,1767811837966,-16080.73486225,0.00014989,2]
[400748297,1767811837977,-999.99,0.00014989,2]
[400748299,1767811837987,-1508.93,0.00014989,2]
[400748301,1767811837996,-500.0,0.00014989,2]
[400748303,1767811838005,-500.0,0.00014989,2]
[400748305,1767811838015,-500.0,0.00014989,2]
[400748307,1767811838024,-500.0,0.00014989,2]
[400748309,1767811838033,-500.0,0.00014989,2]
[400748311,1767811838043,-500.0,0.00014989,2]
[400748313,1767811838052,-500.0,0.00014989,2]
[400748315,1767811838061,-500.0,0.00014989,2]
[400748317,1767811838071,-500.0,0.00014989,2]
[400748319,1767811838081,-500.0,0.00014989,2]
[400748320,1767811838090,-500.0,0.00014989,2]
[400748323,1767811838101,-500.0,0.00014989,2]
[400748325,1767811838113,-249.87664922,0.00014989,2]
[400748328,1767811838122,-500.0,0.00014989,2]
[400748331,1767811838132,-500.0,0.00014989,2]
[400748334,1767811838144,-500.0,0.00014989,2]
[400748337,1767811838154,-500.0,0.00014989,2]
[400748340,1767811838164,-500.0,0.00014989,2]
[400748343,1767811838173,-500.0,0.00014989,2]
[400748345,1767811838183,-500.0,0.00014989,2]
[400748347,1767811838192,-500.0,0.00014989,2]
[400748349,1767811838202,-500.0,0.00014989,2]
[400748351,1767811838212,-500.0,0.00014989,2]
[400748353,1767811838222,-500.0,0.00014989,2]
[400748355,1767811838233,-500.0,0.00014989,2]
[400748356,1767811838242,-500.0,0.00014989,2]
[400748357,1767811838252,-500.0,0.00014989,2]
[400748359,1767811838262,-500.0,0.00014989,2]
[400748361,1767811838271,-500.0,0.00014989,2]
[400748363,1767811838281,-500.0,0.00014989,2]
[400748365,1767811838290,-500.0,0.00014989,2]
[400748367,1767811838300,-500.0,0.00014989,2]
[400748369,1767811838310,-500.0,0.00014989,2]
[400748371,1767811838319,-500.0,0.00014989,2]
[400748373,1767811838329,-500.0,0.00014989,2]
[400748375,1767811838339,-500.0,0.00014989,2]
[400748377,1767811838349,-500.0,0.00014989,2]
[400748380,1767811838364,-500.0,0.00014989,2]
[400748382,1767811838373,-500.0,0.00014989,2]
[400748384,1767811838383,-500.0,0.00014989,2]
[400748386,1767811838392,-500.0,0.00014989,2]
[400748388,1767811838402,-500.0,0.00014989,2]
[400748390,1767811838411,-500.0,0.00014989,2]
[400748392,1767811838420,-500.0,0.00014989,2]
[400748393,1767811838430,-200.0,0.00014989,2]
[400748395,1767811838440,-509.43981979,0.00014989,2]
[400748397,1767811838449,-509.43981979,0.00014989,2]
[400748399,1767811838458,-500.0,0.00014989,2]
[400748401,1767811838468,-519.98256345,0.00014989,2]
[400748403,1767811838477,-500.0,0.00014989,2]
[400748405,1767811838486,-500.0,0.00014989,2]
[400748407,1767811838496,-500.0,0.00014989,2]
[400748410,1767811838508,-573.12438663,0.00014989,2]
[400748412,1767811838517,-500.0,0.00014989,2]
[400748414,1767811838526,-374.87414104,0.00014989,2]
[400748415,1767811838537,-312.21607328,0.00014989,2]
[400748418,1767811838546,-500.0,0.00014989,2]
[400748419,1767811838556,-374.87414104,0.00014989,2]
[400748422,1767811838566,-500.0,0.00014989,2]
[400748423,1767811838575,-9999.99,0.00014991,2]
[400748425,1767811838585,-9999.99,0.00014991,2]
[400748427,1767811838594,-150.99,0.00014991,2]
[400748429,1767811838603,-9999.99,0.00014991,2]
[400748431,1767811838613,-4539.04,0.00014991,2]
[400748433,1767811838622,-609.83029456,0.00014991,2]
[400748435,1767811838631,-151.0,0.00014991,2]
[400748437,1767811838642,-151.0,0.00014991,2]
[400748439,1767811838652,-151.0,0.00014991,2]
[400748441,1767811838662,-151.0,0.00014991,2]
[400748443,1767811838671,-151.0,0.00014991,2]
[400748445,1767811838680,-151.0,0.00014991,2]
[400748447,1767811838690,-151.0,0.00014991,2]
[400748449,1767811838700,-151.0,0.00014991,2]
[400748451,1767811838710,-151.0,0.00014991,2]
[400748453,1767811838719,-151.0,0.00014991,2]
[400748455,1767811838729,-151.0,0.00014991,2]
[400748457,1767811838739,-214.69776175,0.00014998,2]
[400748459,1767811838748,-165.28366814,0.00014998,2]
[400748461,1767811838758,-1187.156,0.00014998,2]
[400748463,1767811838768,-39625.10172944,0.00014999,2]
[400748465,1767811838777,-200.0,0.00014999,2]
[400748467,1767811838787,-200.0,0.00014999,2]
[400748469,1767811838797,-176.21146831,0.00014999,2]
[400748471,1767811838806,-523.72334248,0.00014999,2]
[400748473,1767811838816,-500.0,0.00015018,2]
[400748475,1767811838826,-500.0,0.00015018,2]
[400748477,1767811838835,-250.0,0.00015018,2]
[400748479,1767811838846,-485.0,0.00015018,2]
[400748481,1767811838856,-1455.64956121,0.00015019,2]
[400748483,1767811838866,-13822.5812,0.00015029,2]
[400748485,1767811838876,-1000.0,0.00015029,2]
[400748487,1767811838885,-200.0,0.00015067,2]
[400748489,1767811838895,-500.0,0.00015068,2]
[400748491,1767811838904,-500.0,0.00015073,2]
[400748493,1767811838914,-173.18700714,0.00015073,2]
[400748495,1767811838923,-167.52483751,0.00015073,2]
[400748497,1767811838933,-500.0,0.00015073,2]
[400748500,1767811838944,-500.0,0.00015073,2]
[400748502,1767811838954,-500.0,0.00015073,2]
[400748503,1767811838964,-175.21486475,0.00015073,2]
[400748505,1767811838973,-500.0,0.00015073,2]
[400748507,1767811838982,-500.0,0.00015073,2]
[400748509,1767811838992,-442.83023798,0.00015073,2]
[400748511,1767811839001,-500.0,0.00015073,2]
[400748513,1767811839011,-500.0,0.00015073,2]
[400748515,1767811839020,-552.50710843,0.00015073,2]
[400748517,1767811839030,-538.59757642,0.00015073,2]
[400748519,1767811839040,-536.66734105,0.00015073,2]
[400748522,1767811839050,-331.79442927,0.00015073,2]
[400748524,1767811839060,-500.0,0.00015073,2]
[400748526,1767811839070,-164.10183588,0.00015073,2]
[400748527,1767811839079,-500.0,0.00015073,2]
[400748529,1767811839088,-224.66209336,0.00015073,2]
[400748531,1767811839099,-500.0,0.00015073,2]
[400748533,1767811839111,-500.0,0.00015073,2]
[400748535,1767811839122,-500.0,0.00015073,2]
[400748537,1767811839132,-500.0,0.00015073,2]
[400748539,1767811839143,-500.0,0.00015073,2]
[400748541,1767811839153,-500.0,0.00015073,2]
[400748543,1767811839163,-500.0,0.00015073,2]
[400748545,1767811839174,-500.0,0.00015073,2]
[400748547,1767811839183,-500.0,0.00015073,2]
[400748549,1767811839193,-500.0,0.00015073,2]
[400748551,1767811839203,-500.0,0.00015073,2]
[400748553,1767811839212,-500.0,0.00015073,2]
[400748555,1767811839222,-500.0,0.00015073,2]
[400748596,1767811839579,-500.0,0.00015073,2]
[400748599,1767811839589,-500.0,0.00015073,2]
[400748601,1767811839599,-500.0,0.00015073,2]
[400748603,1767811839608,-237.23316124,0.00015073,2]
[400748605,1767811839617,-468.16894529,0.00015073,2]
[400748607,1767811839626,-500.0,0.00015073,2]
[400748608,1767811839635,-500.0,0.00015073,2]
[400748611,1767811839646,-521.79963653,0.00015073,2]
[400748613,1767811839655,-485.0,0.00015073,2]
[400748615,1767811839666,-166.66,0.00015101,2]
[400748617,1767811839675,-151.0,0.00015112,2]
[400748619,1767811839686,-219635.8248761,0.00015115,2]
[400748621,1767811839694,-500.0,0.00015123,2]
[400748623,1767811839704,-500.0,0.00015128,2]
[400748625,1767811839713,-485.0,0.00015128,2]
[400748626,1767811839724,-557.92597978,0.00015128,2]
[400748628,1767811839733,-500.0,0.00015128,2]
[400748630,1767811839743,-500.0,0.00015128,2]
[400748633,1767811839753,-500.0,0.00015128,2]
[400748635,1767811839762,-500.0,0.00015128,2]
[400748637,1767811839772,-500.0,0.00015128,2]
[400748639,1767811839781,-500.0,0.00015128,2]
[400748641,1767811839790,-500.0,0.00015128,2]
[400748643,1767811839800,-500.0,0.00015128,2]
[400748645,1767811839809,-500.0,0.00015128,2]
[400748647,1767811839819,-500.0,0.00015128,2]
[400748649,1767811839828,-500.0,0.00015128,2]
[400748651,1767811839838,-500.0,0.00015128,2]
[400748653,1767811839847,-500.0,0.00015128,2]
[400748655,1767811839857,-500.0,0.00015128,2]
[400748656,1767811839868,-500.0,0.00015128,2]
[400748658,1767811839879,-500.0,0.00015128,2]
[400748661,1767811839889,-500.0,0.00015128,2]
[400748662,1767811839898,-523.12649514,0.00015128,2]
[400748664,1767811839908,-200.0,0.00015149,2]
[400748666,1767811839918,-200.0,0.00015149,2]
[400748667,1767811839927,-500.0,0.00015178,2]
[400748668,1767811839936,-500.0,0.00015182,2]
[400748669,1767811839945,-485.0,0.00015182,2]
[400748670,1767811839955,-166.66,0.000152,2]
[400748671,1767811839964,-300.0,0.00015212,2]
[400748672,1767811839974,-200.0,0.00015218,2]
[400748673,1767811839984,-500.0,0.00015232,2]
[400748674,1767811839993,-402.0,0.00015237,2]
[400748675,1767811840004,-485.0,0.00015237,2]
[400748676,1767811840014,-1236.80026539,0.00015241,2]
[400748677,1767811840023,-11835.36861976,0.00015249,2]
[400748678,1767811840032,-1508.93,0.00015263,2]
[400748679,1767811840042,-500.0,0.00015263,2]
[400748680,1767811840050,-485.0,0.00015292,2]
[400748681,1767811840059,-200.0,0.000153,2]
[400748682,1767811840069,-300.0,0.00015318,2]
[400748683,1767811840078,-300.0,0.00015326,2]
[400748684,1767811840088,-485.0,0.00015347,2]
[400748686,1767811840098,-500.0,0.00015366,2]
[400748687,1767811840111,-500.0,0.00015366,2]
[400748689,1767811840120,-500.0,0.00015366,2]
[400748691,1767811840129,-500.0,0.00015366,2]
[400748693,1767811840139,-500.0,0.00015366,2]
[400748696,1767811840150,-500.0,0.00015366,2]
[400748698,1767811840160,-500.0,0.00015366,2]
[400748700,1767811840170,-500.0,0.00015366,2]
[400748701,1767811840181,-200.0,0.0001537,2]
[400748704,1767811840192,-166.66,0.00015394,2]
[400748706,1767811840201,-485.0,0.00015402,2]
[400748708,1767811840210,-1377.82277896,0.00015415,2]
[400748710,1767811840219,-200.0,0.00015453,2]
[400748712,1767811840230,-485.0,0.00015456,2]
[400748714,1767811840239,-300.0,0.00015457,2]
[400748716,1767811840248,-300.0,0.00015497,2]